Cogmind - Beta 16 @@@ ROGUE MODE // 2026.01.22 @ 21:20:06 Player: Aksu Result: Destroyed by as-54721 with Assembled Heavy Rifle Performance ------------- Evolutions (0) 0 Regions Visited (2) 400 Robots Destroyed (9) 45 Value Destroyed (266) 266 Prototype IDs (0) 0 Alien Tech Used (0) 0 Bonus (0) 0 TOTAL SCORE: 711 Bonus ------- None Cogmind --------- Core Integrity 0/250 Matter 269/300 Energy 96/100 System Corruption 0% Temperature Cool (2) Movement Walking (120) Location -10/Mines Parts ------- > --- POWER (1) -------- (None) > --- PROPULSION (2) --- Aluminum Leg Aluminum Leg > --- UTILITY (2) ------ Large Storage Unit Visual Processing Unit > --- WEAPON (2) ------- (None) > --- INVENTORY (15) --- Light Ion Engine Aluminum Leg Wheel Wheel Flight Unit Flight Unit Improved Heat Sink High-capacity Storage Unit Large Battery (200) Large Matter Pod (0) EM Pulse Gun Medium Laser Grenade Launcher Peak State ------------ > --- POWER ------------ Light Nuclear Core > --- PROPULSION ------- Aluminum Leg Aluminum Leg > --- UTILITY ---------- Large Storage Unit Visual Processing Unit > --- WEAPON ----------- Assault Rifle Light Assault Rifle > --- INVENTORY -------- Light Ion Engine Aluminum Leg Wheel Wheel Flight Unit Flight Unit High-capacity Storage Unit Large Battery Large Matter Pod EM Pulse Gun Medium Laser Grenade Launcher [Rating: 11] Favorites ----------- Power Light Nuclear Core Engine Light Ion Engine Power Core Light Nuclear Core Propulsion Aluminum Leg Leg Aluminum Leg Wheel Wheel Hover Unit Hover Unit Flight Unit Flight Unit Utility Large Storage Unit Device Terrain Scanner Storage Large Storage Unit Processor Visual Processing Unit Weapon Light Assault Rifle Energy Gun EM Pulse Gun Ballistic Gun Light Assault Rifle Launcher Grenade Launcher Build | -11 -10 -10 ------- Run | Yrd Mat Min Slots Evolved . | . . . Power . | . . . Propulsion . | . . . Utility . | . . . Weapon . | . . . Parts Attached 21 | 5 14 2 Power 2 | 1 . 1 Engine 1 | 1 . . Core 1 | . . 1 Reactor . | . . . Propulsion 9 | 2 6 1 Treads . | . . . Leg 4 | . 3 1 Wheel 2 | 2 . . Hover 1 | . 1 . Flight 2 | . 2 . Utility 6 | . 6 . Device 1 | . 1 . Storage 4 | . 4 . Processor 1 | . 1 . Hackware . | . . . Protection . | . . . Artifact . | . . . Weapon 4 | 2 2 . Energy Gun 1 | 1 . . Energy Cannon . | . . . Ballistic Gun 2 | 1 1 . Ballistic Cannon . | . . . Launcher 1 | . 1 . Special Weapon . | . . . Impact Weapon . | . . . Slashing Weapon . | . . . Piercing Weapon . | . . . Special Melee Weapon . | . . . Unidentified Prototypes . | . . . Parts Lost 5 | . 1 4 Power 2 | . 1 1 Propulsion 1 | . . 1 Utility . | . . . Weapon 2 | . . 2 Highest Loss Streak 4 | . 1 4 To Critical Strikes . | . . . Average Backups 11 | 2 8 13 Power . | . . 1 Propulsion 4 | 1 3 5 Utility 2 | . 1 3 Weapon 2 | . 2 3 Tool/Special . | . . . Unused Backups 3 | . . 3 Power 1 | . . 1 Propulsion . | . . . Utility 1 | . . 1 Weapon 1 | . . 1 Tool/Special . | . . . Average Slot Usage (%) 95 | . 94 96 Engine 4 | . 11 . Core 7 | . . 12 Leg 22 | . 15 27 Wheel 4 | . 11 . Storage 14 | . 15 14 Processor 11 | . 8 14 Energy Gun 2 | . 6 . Ballistic Gun 23 | . 19 26 Peak Build Rating 11 | 5 9 11 Average Rating 9 | 3 7 10 On Entrance 4 | . 5 8 Avg Prop Armor Cover (%) . | . . . Naked Turns . | . . . Heaviest Build 29 | 6 29 28 Greatest Support 20 | 20 20 20 Greatest Overweight (x) 4 | . 4 1 Average Overweight (x) . | . . . Largest Inventory Capacity 20 | 5 20 15 Average Capacity 13 | 5 12 15 Most Carried 14 | 4 13 14 Average Carried 11 | 2 8 13 Final Capacity 15 | 5 15 15 Final Carried 13 | 4 12 13 Class Distribution -------------------- 100% | Mutant Dominant Class ---------------- Mutant | -10/Materials Mutant | -10/Mines Resources | -11 -10 -10 ----------- Run | Yrd Mat Min Matter Collected 635 | 254 136 245 Remotely . | . . . Salvage Created 320 | 48 122 150 Parts 18 | 1 10 7 Haulers Intercepted . | . . . Recyclers Shooed 1 | . . 1 Parts Field Recycled . | . . . Retrieved Matter . | . . . Parts Self-Destructed . | . . . Prevented . | . . . Parts Restored . | . . . Kills | -11 -10 -10 ------- Run | Yrd Mat Min Combat Hostiles Destroyed 10 | 1 4 5 Guns 8 | 1 4 3 AOE 2 | . . 2 Classes Destroyed 4 | 1 2 1 Watcher 1 | . 1 . Swarmer 2 | . 2 . Grunt 6 | 1 2 3 Assembled 2 | . . 2 Best Kill Streak 2 | 1 2 2 Combat Bots Only 2 | 1 2 2 Max Kills in Single Turn 2 | 1 1 2 Gunslinging . | . . . Exploded 2 | . . 2 Melee . | . . . Uniques/NPCs Destroyed . | . . . Combat | -11 -10 -10 -------- Run | Yrd Mat Min Hostile Shots Fired 103 | 4 55 44 Missed 28 | 4 17 7 Hits 75 | . 38 37 Projectile 75 | . 38 37 Critical Strikes 1 | . . 1 Damage Taken 938 | . 415 523 Core 251 | . 113 138 Absorbed by Shields . | . . . Core Remaining (%) 100 | 100 . . Volleys Fired 57 | 4 32 21 Largest 2 | 2 2 2 Hottest 60 | 60 60 50 Shots Fired 105 | 8 62 35 Gun 103 | 8 61 34 Cannon . | . . . Launcher 2 | . 1 1 Special . | . . . Kinetic 89 | 4 51 34 Thermal . | . . . Explosive 2 | . 1 1 Electromagnetic 14 | 4 10 . Robot Hit Streak 6 | 1 4 6 Robot Miss Streak 5 | 2 3 5 Penetration Max . | . . . Secondary Targets . | . . . Shots Hit Robots 53 | 2 31 20 Core Hits 23 | 2 9 12 Critical Kills . | . . . Critical Parts Destroyed 1 | . 1 . Critical Strikes 1 | . 1 . Destroy 1 | . 1 . Melee Attacks . | . . . Impact . | . . . Slashing . | . . . Piercing . | . . . Sneak Attacks . | . . . Combat Hostiles . | . . . Follow-up Attacks . | . . . Damage Inflicted 695 | 24 366 305 Guns 553 | 24 334 195 Cannons . | . . . Explosions 139 | . 32 107 Melee . | . . . Ramming 3 | . . 3 Kinetic 443 | . 248 195 Thermal . | . . . Explosive 139 | . 32 107 Electromagnetic 110 | 24 86 . Impact . | . . . Slashing . | . . . Piercing . | . . . Highest Corruption . | . . . Average Corruption . | . . . Corruption Purged . | . . . Corruption Blocked . | . . . Overload Shots . | . . . Overflow Damage . | . . . Projectiles . | . . . Explosions . | . . . Melee . | . . . Knockbacks . | . . . Impact . | . . . Kinetic . | . . . Secondary . | . . . Self-Inflicted Damage . | . . . Shots . | . . . Rammed . | . . . Targets Rammed 1 | . . 1 Kicked 1 | . . 1 Crushed . | . . . Highest Temperature 52 | 40 52 31 Average Temperature 13 | 20 15 8 Received Heat Transfer 288 | . 162 126 Siege Activations . | . . . Martial Activations . | . . . Shielding Activations . | . . . Robots Disrupted . | . . . Combat Hostiles . | . . . Robots Corrupted . | . . . Combat Hostiles . | . . . Parts Fried . | . . . Impact Corruptions . | . . . Robots Melted . | . . . Combat Hostiles . | . . . Parts Melted . | . . . Heat Transferred . | . . . Parts Sabotaged . | . . . Parts Stolen . | . . . Parts Stripped . | . . . Power Chain Reactions . | . . . Alert | -11 -10 -10 ------- Run | Yrd Mat Min Maximum Alert Level . | . . . Low Security (%) 100 | 100 100 100 Level 1 . | . . . Level 2 . | . . . Level 3 . | . . . Level 4 . | . . . Level 5 . | . . . High Security . | . . . Max Security . | . . . Peak Influence 37 | 10 35 37 Initial 7 | . 6 7 Average 5 | 1 6 4 Influence Increases 246 | 20 136 90 Destroy 0b10 Robot/C 160 | 20 80 60 Destroy 0b10 Robot/NC 5 | . 5 . Destroy Leader 32 | . 12 20 Successful Hack 12 | . 12 . Destroy Structure 22 | . 12 10 Lose Combat Pursuer 15 | . 15 . Influence Decreases 246 | 10 127 109 Entered New Map 16 | . 4 12 Time Decay 218 | 10 113 95 Lost Part 12 | . 10 2 Squads Dispatched 2 | . 2 . Investigation . | . . . Extermination . | . . . Reinforcement 2 | . 2 . Assault . | . . . Garrison . | . . . Intercept . | . . . Searches Triggered . | . . . Construction Impeded . | . . . Haulers Reinforced . | . . . Active Scanning Responses . | . . . Cargo Convoy Interrupts . | . . . Stealth | -11 -10 -10 --------- Run | Yrd Mat Min Distress Signals . | . . . Communications Jammed . | . . . Distress Signals . | . . . Times Spotted 30 | 1 14 15 Peak Tracking Total 14 | 1 3 14 Tactical Retreats 2 | . 1 1 Traps | -11 -10 -10 ------- Run | Yrd Mat Min Traps Triggered . | . . . Indirectly . | . . . Trap Hack Attempts . | . . . Triggered . | . . . Disarmed . | . . . Reprogrammed . | . . . Reused . | . . . Traps Extracted . | . . . Installed . | . . . Triggered . | . . . Machines | -11 -10 -10 ---------- Run | Yrd Mat Min Machines Disabled . | . . . Max in Single Turn . | . . . Machines Repaired . | . . . Machines Dismantled . | . . . Machines Sabotaged . | . . . Overloaded Fab Kills . | . . . Hacking | -11 -10 -10 --------- Run | Yrd Mat Min Machines Accessed 1 | . 1 . Terminals 1 | . 1 . Fabricators . | . . . Repair Stations . | . . . Recycling Units . | . . . Scanalyzers . | . . . Garrison Access . | . . . Total Hacks 2 | . 2 . Successful 2 | . 2 . Failed . | . . . Catastrophic . | . . . Database Lockouts . | . . . Manual . | . . . Terminals 2 | . 2 . Fabricators . | . . . Repair Stations . | . . . Recycling Units . | . . . Scanalyzers . | . . . Garrison Access . | . . . Terminal Hacks 2 | . 2 . Registered Components 1 | . 1 . Zone Layout 1 | . 1 . Fabricator Hacks . | . . . Repair Station Hacks . | . . . Recycling Unit Hacks . | . . . Scanalyzer . | . . . Garrison Access Hacks . | . . . Unauthorized Hacks . | . . . Terminals . | . . . Fabricators . | . . . Repair Stations . | . . . Recycling Units . | . . . Scanalyzers . | . . . Garrison Access . | . . . Data Cores Recovered . | . . . Used . | . . . Hacking Detections 1 | . 1 . Full Trace Events . | . . . Feedback Events . | . . . Feedback Blocked . | . . . Robot Schematics Acquired . | . . . Robots Built . | . . . Authchips . | . . . Time . | . . . Total Robot Build Rating . | . . . Part Schematics Acquired . | . . . Parts Built . | . . . Authchips . | . . . Time . | . . . Total Part Build Rating . | . . . Part Studies Acquired . | . . . Parts Repaired . | . . . Time . | . . . Parts Recycled . | . . . Recycled Matter . | . . . Retrieved Matter . | . . . Retrieved Components . | . . . Parts Scanalyzed . | . . . Part Schematics Acquired . | . . . Parts Damaged . | . . . Bothacking | -11 -10 -10 ------------ Run | Yrd Mat Min Used RIF Installer . | . . . Robots Hacked . | . . . Non-combat . | . . . Combat . | . . . Robot Hacks Applied . | . . . Relay Couplers Released . | . . . Fabnet Peak Effective % . | . . . Robots Rewired . | . . . Allies Hacked . | . . . Hacks Repelled . | . . . Allies | -11 -10 -10 -------- Run | Yrd Mat Min Total Allies . | . . . Largest Group . | . . . Highest-Rated Group . | . . . Highest-Rated Ally . | . . . Total Orders . | . . . Ally Attacks . | . . . Total Damage . | . . . Kills . | . . . Allies Corrupted . | . . . Allies Melted . | . . . Intel | -11 -10 -10 ------- Run | Yrd Mat Min Active Infowar (turns) 1059 | . 336 723 Optics 1016 | . 293 723 Terrain 43 | . 43 . Robot Analysis Total . | . . . Derelict Logs Recovered 1 | . . 1 Drone Launches . | . . . Drone Recoveries . | . . . Exploration | -11 -10 -10 ------------- Run | Yrd Mat Min Turns Passed 1262 | 71 468 723 Spaces Moved 693 | 67 274 352 Core 17 | 17 . . Treads . | . . . Legs 447 | . 95 352 Wheels 225 | 50 175 . Hover 4 | . 4 . Flight . | . . . Fastest Speed 50 | 50 80 120 Average Speed 150 | 72 122 187 Slowest Speed 300 | 80 300 190 Overloaded Moves . | . . . Propulsion Burnouts . | . . . Robots Hopped . | . . . Potential Cave-ins . | . . . Cave-ins Triggered . | . . . Exploration Rate (%) 40 | 5 51 64 Regions Visited 2 Branch Regions 1 Pre-discovered Areas 1 | . . 1 Known Exits Taken . | . . . Unknown Exits Taken 2 | 1 1 . Scrap Searched 1 | . . 1 Spaces Dug . | . . . Terrain Destroyed 22 | . 12 10 Melee . | . . . Projectile . | . . . AOE 22 | . 12 10 Terrain Rammed . | . . . Walls Destroyed . | . . . Machines Disabled . | . . . Actions | -11 -10 -10 --------- Run | Yrd Mat Min Total 805 | 79 344 382 Wait 2 | . . 2 Move 691 | 66 273 352 Hop . | . . . Pick Up 14 | 4 9 1 Fast Attach 11 | 5 5 1 Attach 4 | . 3 1 Detach 3 | . 3 . Swap 17 | . 14 3 Drop 5 | . 5 . Fire 57 | 4 32 21 Melee . | . . . Ram . | . . . Kick 1 | . . 1 Crush . | . . . Escape Stasis . | . . . Rewire . | . . . Trap . | . . . Miscellaneous . | . . . Route ------- -11/Scrapyard -10/Materials (discovered 3 exits: [*Mat x2] / [*Min]) -10/Mines (discovered 2 exits: [*Mat] / [*Exi]) History --------- Turn | Location | Event 2 | -11/Scrapyard | Met Revision 17 49 | -11/Scrapyard | Discovered new exit (range 8) 72 | -11/Scrapyard | Entered Materials 187 | -10/Materials | Discovered new exit (range 10) 321 | -10/Materials | Build established: Mutant 338 | -10/Materials | Discovered new exit (range 10) 383 | -10/Materials | Discovered new exit (range 14) 540 | -10/Materials | Entered Mines 565 | -10/Mines | Core integrity fell below 50% 677 | -10/Mines | Discovered new exit (range 6) 894 | -10/Mines | Learned location of Zion (-7) 1117 | -10/Mines | Deemed a non-threat by the Exiles lab entrance 1117 | -10/Mines | Discovered new exit (range 5) 1194 | -10/Mines | Assembled infested the area 1252 | -10/Mines | Core integrity fell below 20% 1263 | -10/Mines | Destroyed by as-54721 with Assembled Heavy Rifle Last Messages --------------- 00852_ G-47 Trooper destroyed. 00852_ R-06 Scavenger collects Corrupted Lgt. Nuclear Core. 00856_ R-06 Scavenger collects Corrupted Aluminum Leg. 00858_ K-01 Serf collects debris. 00866_ Acquired 49 matter. 00869_ K-01 Serf collects debris. 00894_ Acquired derelict log, extracted data. World map updated: -7/Zion. 01060_ K-01 Serf cleans the Core Extractor. 01117_ "No threat detected, you may enter." 01117_ EXIT=FOUND 01194_ ALERT: Infestation in the mines, dispatching Demolisher response squad. 01219_ as-08720 destroyed. 01221_ Assault Rifle destroyed. [Achievement: There's More Where That Came From] 01236_ Lgt. Assault Rifle destroyed. 01238_ Lgt. Nuclear Core destroyed. 01242_ Aluminum Leg destroyed. [Achievement: First Step to Greatness] Map ----- +----------------------------------------------------+ | | | | | | | | | | | | | ???????????????????????????????????????? | | ???????????????????????????????????????? | | ??????###?????????????####?????????????? | | ?????? ????????????## ##????????????? | | ?????? ????????????# #????????????? | | ?????? ???????????## #????????????? | | ?????? ??????????## #????????????? | | ?????? ?????###### #?????????????? | | ??????# ????## #?????????????? | | ??????# #???## #?????????????? | | ??????# #???# #???????####??? | | ??????# #???# ##??##### #### | | ??????# ###### #### #### | | ??????# #?## #??## ## ### | | ??????# #### #???## ##?? | | ??????### ##??## ##??? | | ????????# #### ##???? | | ????????######## #####????? | | ????#????######## ####????????? | | ????#<#### @ ##???????????? | | ????# ## ####### ##???????????? | | ????### #???## """ ####????????? | | ??????### ##??## """ ##???????? | | ????????####### """ ##??####? | | ??????????# #### ## | | ??????????# # | | ??????????## ### ## # | | ???????????#####??## #### # | | ???????????????????## ##??#### | | ????????????????????###??????## | | ??????????????????????????????## | | ??###??????????????????????????## | | ??# #######?????????????????##### | | ?# #??????????????#### ### | | ?# < ### #?????????????## ## | | ?# #?# #?????????????# ## | | ?# #?# #??????###???## #### | | ?## ##?# #?????## #??# #??## | | ??###???# #?????# ### #???# | | ????????# #?????# ##### | | ????????# #?????# | | ???###### #?????# # | | ??## ## #?????# ######## | | ??# ##????# ##?????# | +----------------------------------------------------+ Best States ------------- Heat Dissipation 25 Energy Generation 14 Energy Capacity 325 Matter Stores 300 Matter Capacity 450 Sight Range 18 Terrain Scan Range 14 Terrain Scan Density 10 Evasion (%) 55 Item Schematics ----------------- None Robot Schematics ------------------ None Fabricated ------------ Nothing Repaired ---------- Nothing Studied --------- None Alien Tech Used ----------------- None Achievements -------------- First Step to Greatness For Emergencies Only Spot Them First Storm Trooper There's More Where That Came From Uninvited Guest Challenges ------------ None Game ------ Seed InertialVariableCompressor Manual? 0 Play Time 00:54:23 Cumulative 0.8 hours Start 2026.01.22 @ 20:02:17 End 2026.01.22 @ 21:20:06 Sessions 1 Manual Loads 0 Difficulty Rogue Special Mode None Game No. 1 Rogue 1 Adventurer 0 Explorer 0 Win Type - Total 0 Types 0/0/0/0/0/0/0/0/0/0 Lore% 0 Gallery% 1 Achievement% 1 Wizard Run 0 Options --------- Layout 2 ASCII 0 Keyboard 1 Movement Numpad Keybinds 0 Fullscreen 1 Font 32/SmallcapsGlow Map View 77x44 Zoom Use 0% Tactical HUD 1 Map Filters NONE Filters NONE Steam 1 RUN: c9f6b504-20f0-493e-84ba-4fd4b13b6e90